[Event "WTCC-65 2018"]
[Site "Radebeul"]
[Date "2018.07.08"]
[Round "2"]
[White "Emerson, Roger"]
[Black "Petzold, Hans"]
[Result "1/2-1/2"]
[ECO "E46"]
[WhiteElo "2211"]
[BlackElo "2042"]
[Annotator "NA"]
[PlyCount "80"]
[EventDate "2018.07.07"]
[EventType "team-tourn"]
[EventCountry "GER"]
[SourceTitle "playchess.com"]
[Source "ChessBase"]
[SourceQuality "1"]
[TimeControl "40/5400+30:1800+30"]

1. d4 {[%emt 0:00:00]} e6 {[%emt 0:00:00]} 2. c4 {[%emt 0:00:11]} Nf6 {[%emt 0:00:00]} 3. Nc3 {[%emt 0:00:11]} Bb4 {[%emt 0:00:00]} 4. e3 {[%emt 0:00:14]} O-O {[%emt 0:00:34]} 5. Nge2 {[%emt 0:00:40]} d6 {[%emt 0:01:12]} 6. a3 {[%emt 0:00:16] E46: Nimzo-Indian: Rubinstein: 4 e3 0-0 5 Ne2 without early Bd3} Bxc3+ {[%emt 0:00:11]} 7. Nxc3 {[%emt 0:00:09]} e5 {[%emt 0:04:45]} 8. Be2 {[%emt 0:00:46]} e4 $146 {[%emt 0:01:53]} ({Predecessor:} 8... Nc6 9. d5 Ne7 10. b4 a5 11. Bb2 c6 12. dxc6 Nxc6 13. b5 Ne7 {1-0 (44) Wang,Y (2718)-Mohammad,M (2436) Abu Dhabi 2016}) 9. b4 {[%emt 0:07:26]} a5 {[%emt 0:02:35]} 10. Bb2 {[%emt 0:02:34]} Re8 {[%emt 0:04:18]} 11. O-O {[%emt 0:01:02]} Bf5 {[%emt 0:06:26]} 12. b5 {[%emt 0:09:10]} Nbd7 {[%emt 0:02:23]} 13. a4 {[%emt 0:00:23]} b6 {[%emt 0:02:37]} 14. Ba3 {[%emt 0:02:58]} Nf8 {[%emt 0:06:23]} 15. c5 {[%emt 0:05:40]} d5 {[%emt 0:03:23]} 16. cxb6 {[%emt 0:01:44]} cxb6 {[%emt 0:00:02]} 17. Bxf8 {[%emt 0:00:32]} Rxf8 {[%emt 0:04:57]} 18. Qb3 {[%emt 0:01:30]} Qd7 {[%emt 0:01:49]} 19. Rfc1 {[%emt 0:01:43]} Rac8 {[%emt 0:00:22]} 20. Rc2 $11 {[%emt 0:02:24]} Rc7 {[%emt 0:02:58]} 21. Rac1 {[%emt 0:00:13]} Rfc8 {[%emt 0:00:18]} 22. Nd1 {[%emt 0:00:50]} Be6 {[%emt 0:00:49]} 23. Rc6 {[%emt 0:05:15]} Ne8 {[%emt 0:11:15]} 24. R1c3 {[%emt 0:10:22]} Rb8 {[%emt 0:09:55]} 25. Rxc7 {[%emt 0:03:41]} Nxc7 {[%emt 0:00:09]} 26. Qa3 {[%emt 0:04:25]} Ne8 {[%emt 0:03:16]} 27. Rc6 {[%emt 0:00:49]} g6 {[%emt 0:02:12]} 28. f3 {[%emt 0:06:56]} Qd8 {[%emt 0:01:01]} 29. Nc3 {[%emt 0:07:33]} Bd7 {[%emt 0:02:50]} 30. fxe4 {[%emt 0:00:12]} Bxc6 {[%emt 0:01:11]} 31. bxc6 {[%emt 0:00:09]} dxe4 {[%emt 0:05:20]} 32. Nxe4 {[%emt 0:03:59]} Rc8 {[%emt 0:03:29]} 33. Bb5 {[%emt 0:02:00]} Qd5 {[%emt 0:03:14]} 34. Qe7 {[%emt 0:00:26]} Qe6 {[%emt 0:03:58]} 35. Qd7 {[%emt 0:05:09]} Kg7 {[%emt 0:08:37]} 36. Bc4 {[%emt 0:01:16]} Qxe4 {[%emt 0:02:13]} 37. Qxc8 {[%emt 0:01:32]} Qxe3+ {[%emt 0:00:13]} 38. Kf1 {[%emt 0:00:08]} Qc1+ {[%emt 0:00:07]} 39. Kf2 {[%emt 0:00:25]} Qxc4 {[%emt 0:00:37]} 40. Qxe8 {[%emt 0:00:11]} Qxd4+ {[%emt 0:01:36]} 1/2-1/2

[Event "WTCC-65 2018"]
[Site "Radebeul"]
[Date "2018.07.08"]
[Round "2"]
[White "Schmidt, Gerhard"]
[Black "Bellin, Robert"]
[Result "1/2-1/2"]
[ECO "A80"]
[WhiteElo "2174"]
[BlackElo "2333"]
[Annotator "NA"]
[PlyCount "44"]
[EventDate "2018.07.07"]
[EventType "team-tourn"]
[EventCountry "GER"]
[SourceTitle "playchess.com"]
[Source "ChessBase"]
[SourceQuality "1"]
[TimeControl "40/5400+30:1800+30"]

1. d4 {[%emt 0:00:00]} f5 {[%emt 0:01:05]} 2. Bg5 {[%emt 0:00:00]} h6 {[%emt 0:00:07]} 3. Bh4 {[%emt 0:00:43]} g5 {[%emt 0:00:07]} 4. e3 {[%emt 0:01:07]} Nf6 {[%emt 0:00:26]} 5. Bg3 {[%emt 0:00:19] LiveBook: 202 Partien} d6 {[%emt 0:00:10]} 6. c4 {[%emt 0:09:42]} e6 {[%emt 0:03:39]} 7. Nc3 {[%emt 0:01:13]} Qe7 {[%emt 0:00:17]} 8. Nf3 {[%emt 0:19:32]} Nh5 {[%emt 0:05:51]} 9. Nd2 {[%emt 0:06:51]} Nxg3 {[%emt 0:02:29]} 10. hxg3 {[%emt 0:00:17]} Bg7 {[%emt 0:00:07]} 11. Qc2 {[%emt 0:11:30]} O-O {[%emt 0:02:58]} 12. O-O-O {[%emt 0:00:42]} c5 {[%emt 0:06:35]} 13. Nb3 {[%emt 0:05:38]} Bd7 {[%emt 0:08:18]} 14. Qd2 {[%emt 0:07:08]} Rd8 {[%emt 0:09:28]} 15. dxc5 $11 {[%emt 0:05:22]} dxc5 {[%emt 0:00:43]} 16. Qd6 {[%emt 0:00:10]} Qxd6 {[%emt 0:02:55]} 17. Rxd6 {[%emt 0:00:05]} Bf8 {[%emt 0:00:07]} 18. Rd2 {[%emt 0:01:59]} Nc6 {[%emt 0:00:30]} 19. Nb5 {[%emt 0:06:10]} Be8 {[%emt 0:00:57]} 20. Nc7 {[%emt 0:01:26]} Rxd2 {[%emt 0:04:05]} 21. Nxd2 {[%emt 0:00:17]} Rd8 {[%emt 0:00:06]} 22. Nxe6 {[%emt 0:01:48]} Rd6 {[%emt 0:00:06]} 1/2-1/2

[Event "WTCC-65 2018"]
[Site "Radebeul"]
[Date "2018.07.08"]
[Round "2"]
[White "Titz, Heimo"]
[Black "Vaisser, Anatoli"]
[Result "0-1"]
[ECO "A20"]
[WhiteElo "2164"]
[BlackElo "2502"]
[Annotator "ChessBase"]
[PlyCount "78"]
[EventDate "2018.07.07"]
[EventType "team-tourn"]
[EventCountry "GER"]
[SourceTitle "playchess.com"]
[Source "ChessBase"]
[SourceQuality "1"]
[TimeControl "40/5400+30:1800+30"]

1. c4 {[%emt 0:00:00]} e5 {[%emt 0:00:02]} 2. g3 {[%emt 0:00:20]} d6 {[%emt 0:01:21]} 3. Nc3 {[%emt 0:01:27]} g6 {[%emt 0:01:50]} 4. Bg2 {[%emt 0:00:50]} Bg7 {[%emt 0:01:07]} 5. d3 {[%emt 0:00:32]} f5 {[%emt 0:03:38]} 6. e3 {[%emt 0:01:45]} Nf6 {[%emt 0:01:17]} 7. Nge2 {[%emt 0:00:13]} O-O {[%emt 0:04:10]} 8. O-O {[%emt 0:00:09]} Nc6 {[%emt 0:03:56]} 9. Rb1 {[%emt 0:03:08]} a5 {[%emt 0:00:17]} 10. a3 {[%emt 0:00:36]} g5 {[%emt 0:04:22]} 11. b4 {[%emt 0:04:09]} axb4 {[%emt 0:00:24]} 12. axb4 {[%emt 0:00:03]} Ne7 {[%emt 0:02:13]} 13. Qb3 {[%emt 0:08:23]} f4 {[%emt 0:03:09]} 14. exf4 {[%emt 0:04:32]} gxf4 {[%emt 0:00:39]} 15. gxf4 {[%emt 0:00:37]} Ng6 {[%emt 0:01:56]} 16. fxe5 {[%emt 0:03:52]} dxe5 {[%emt 0:02:05]} 17. Ne4 {[%emt 0:01:19]} Nh5 {[%emt 0:06:16]} 18. Bg5 {[%emt 0:03:07]} Qd7 {[%emt 0:02:06]} 19. h3 {[%emt 0:15:31]} h6 {[%emt 0:02:37]} 20. c5+ {[%emt 0:06:20]} Kh8 {[%emt 0:00:48]} 21. c6 {[%emt 0:00:29]} bxc6 {[%emt 0:01:59]} 22. Be3 {[%emt 0:02:02]} Nh4 {[%emt 0:01:48]} 23. Nc5 {[%emt 0:01:04]} Qe8 {[%emt 0:01:25]} 24. Ng3 {[%emt 0:01:27]} Nxg2 {[%emt 0:07:42]} 25. Kxg2 {[%emt 0:00:54]} Nf4+ {[%emt 0:02:44]} 26. Kh2 {[%emt 0:16:16]} Qe7 {[%emt 0:01:34]} 27. Bxf4 {[%emt 0:06:07]} exf4 {[%emt 0:00:33]} 28. Nge4 {[%emt 0:00:05]} f3 {[%emt 0:08:59]} 29. Rg1 {[%emt 0:06:34]} Be5+ {[%emt 0:02:34]} 30. Rg3 {[%emt 0:00:30]} Bxg3+ {[%emt 0:06:54]} 31. fxg3 {[%emt 0:01:03]} Bf5 {[%emt 0:06:52]} 32. Rf1 {[%emt 0:01:14]} Bg6 {[%emt 0:06:32]} 33. Rf2 {[%emt 0:02:14]} Kh7 {[%emt 0:01:53]} 34. Qc3 {[%emt 0:02:45]} Rf7 {[%emt 0:02:06]} 35. g4 {[%emt 0:01:41]} Raf8 {[%emt 0:03:33]} 36. Kg3 {[%emt 0:00:19]} Rf4 {[%emt 0:00:37]} 37. h4 {[%emt 0:02:37]} Bxe4 {[%emt 0:00:46]} 38. Nxe4 {[%emt 0:03:43]} Qe6 {[%emt 0:00:31]} 39. Kh2 {[%emt 0:00:37]} Qxg4 {[%emt 0:00:34]} 0-1

[Event "WTCC-65 2018"]
[Site "Radebeul"]
[Date "2018.07.08"]
[Round "2"]
[White "Baumbach, Friedrich"]
[Black "Balashov, Yuri S"]
[Result "0-1"]
[ECO "E15"]
[WhiteElo "2147"]
[BlackElo "2423"]
[Annotator "ChessBase"]
[PlyCount "116"]
[EventDate "2018.07.07"]
[EventType "team-tourn"]
[EventCountry "GER"]
[SourceTitle "playchess.com"]
[Source "ChessBase"]
[SourceQuality "1"]
[TimeControl "40/5400+30:1800+30"]

1. d4 {[%emt 0:00:00]} Nf6 {[%emt 0:00:00]} 2. c4 {[%emt 0:00:00]} e6 {[%emt 0:00:00]} 3. Nf3 {[%emt 0:00:00]} b6 {[%emt 0:00:07]} 4. g3 {[%emt 0:00:02]} Ba6 {[%emt 0:00:10]} 5. Qc2 {[%emt 0:00:34]} c5 {[%emt 0:00:20]} 6. Bg2 {[%emt 0:00:25]} Nc6 {[%emt 0:00:17]} 7. dxc5 {[%emt 0:00:38]} Bxc5 {[%emt 0:00:10]} 8. O-O {[%emt 0:00:31]} Rc8 {[%emt 0:00:14]} 9. Bg5 {[%emt 0:09:56]} Nb4 {[%emt 0:05:23]} 10. Qd1 {[%emt 0:11:05]} Bxc4 {[%emt 0:01:01]} 11. Nbd2 {[%emt 0:00:12]} Ba6 {[%emt 0:01:12]} 12. Ne4 {[%emt 0:05:20]} Be7 {[%emt 0:01:53]} 13. Bxf6 {[%emt 0:04:20]} gxf6 {[%emt 0:00:13]} 14. Nc3 {[%emt 0:00:33]} Bb7 {[%emt 0:12:03]} 15. Qa4 {[%emt 0:11:12]} a6 {[%emt 0:01:37]} 16. Rfd1 {[%emt 0:04:18]} b5 {[%emt 0:03:21]} 17. Qb3 {[%emt 0:00:24]} Nc6 {[%emt 0:01:28]} 18. Ne4 {[%emt 0:05:36]} Na5 {[%emt 0:10:43]} 19. Qd3 {[%emt 0:01:08]} Nc4 {[%emt 0:01:29]} 20. Rab1 {[%emt 0:01:40]} d5 {[%emt 0:01:06]} 21. Nc3 {[%emt 0:03:04]} Qa5 {[%emt 0:06:42]} 22. b3 {[%emt 0:01:50]} Ne5 {[%emt 0:01:08]} 23. Nxe5 {[%emt 0:00:50]} Qxc3 {[%emt 0:13:49]} 24. Qxc3 {[%emt 0:05:08]} Rxc3 {[%emt 0:00:07]} 25. Nd3 {[%emt 0:00:15]} b4 {[%emt 0:04:22]} 26. Kf1 {[%emt 0:03:20]} Bd6 {[%emt 0:01:45]} 27. Ke1 {[%emt 0:00:49]} Ke7 {[%emt 0:00:39]} 28. Kd2 {[%emt 0:00:38]} Rhc8 {[%emt 0:00:35]} 29. Rdc1 {[%emt 0:00:32]} a5 {[%emt 0:01:50]} 30. Rxc3 {[%emt 0:02:44]} bxc3+ {[%emt 0:00:36]} 31. Kc2 {[%emt 0:00:42]} Ba6 {[%emt 0:00:11]} 32. e3 {[%emt 0:04:58]} Ba3 {[%emt 0:00:17]} 33. Bf1 {[%emt 0:01:50]} f5 {[%emt 0:01:04]} 34. Nf4 {[%emt 0:06:20]} Bb7 {[%emt 0:00:09]} 35. Rd1 {[%emt 0:00:56]} Kd6 {[%emt 0:00:28]} 36. Ne2 {[%emt 0:03:12]} e5 {[%emt 0:01:15]} 37. Bh3 {[%emt 0:02:37]} Ke6 {[%emt 0:00:22]} 38. g4 {[%emt 0:02:04]} fxg4 {[%emt 0:01:24]} 39. Bxg4+ {[%emt 0:00:01]} f5 {[%emt 0:00:07]} 40. Bf3 {[%emt 0:00:47]} Rc5 {[%emt 0:01:31]} 41. Rg1 {[%emt 0:31:40]} Kf7 {[%emt 0:30:22]} 42. Rg5 {[%emt 0:01:20]} Bc8 {[%emt 0:00:23]} 43. Bh5+ {[%emt 0:01:30]} Kf6 {[%emt 0:04:53]} 44. Rg8 {[%emt 0:01:51]} f4 {[%emt 0:00:14]} 45. Bg4 {[%emt 0:02:34]} Bxg4 {[%emt 0:01:33]} 46. Rxg4 {[%emt 0:00:00]} Kf5 {[%emt 0:00:00]} 47. Rh4 {[%emt 0:00:00]} Ke4 {[%emt 0:00:00]} 48. exf4 {[%emt 0:00:00]} Kf3 {[%emt 0:00:00]} 49. Ng1+ {[%emt 0:00:00]} Kxf2 {[%emt 0:00:00]} 50. Nh3+ {[%emt 0:00:00]} Ke3 {[%emt 0:00:00]} 51. fxe5 {[%emt 0:00:00]} d4 {[%emt 0:00:00]} 52. Nf4 {[%emt 0:00:00]} Rxe5 {[%emt 0:00:00]} 53. Ng2+ {[%emt 0:00:00]} Kf3 {[%emt 0:00:00]} 54. Rxd4 {[%emt 0:00:00]} Re2+ {[%emt 0:00:00]} 55. Kd3 {[%emt 0:00:00]} Rxg2 {[%emt 0:00:00]} 56. Rc4 {[%emt 0:00:00]} Bb4 {[%emt 0:00:00]} 57. Rc7 {[%emt 0:00:00]} Rd2+ {[%emt 0:00:00]} 58. Kc4 {[%emt 0:00:00]} c2 {[%emt 0:00:00]} 0-1

[Event "WTCC-65 2018"]
[Site "Radebeul"]
[Date "2018.07.08"]
[Round "2"]
[White "Ghijsen, Pim"]
[Black "Mishuchkov, Nikolai M."]
[Result "1/2-1/2"]
[ECO "A41"]
[WhiteElo "2137"]
[BlackElo "2311"]
[Annotator "NA"]
[PlyCount "84"]
[EventDate "2018.07.07"]
[EventType "team-tourn"]
[EventCountry "GER"]
[SourceTitle "playchess.com"]
[Source "ChessBase"]
[SourceQuality "1"]
[TimeControl "40/5400+30:1800+30"]

1. d4 {[%emt 0:00:00]} d6 {[%emt 0:07:32]} 2. e4 {[%emt 0:03:18]} g6 {[%emt 0:00:27]} 3. Nf3 {[%emt 0:02:42]} Bg7 {[%emt 0:00:55]} 4. h3 {[%emt 0:01:57]} Nf6 {[%emt 0:01:57]} 5. Bd3 {[%emt 0:04:02]} O-O {[%emt 0:05:01]} 6. O-O {[%emt 0:00:42]} Nc6 {[%emt 0:01:14]} 7. c3 {[%emt 0:00:30]} e5 {[%emt 0:00:10]} 8. dxe5 {[%emt 0:03:00]} dxe5 {[%emt 0:02:17] LiveBook: 16 Games B07: Pirc Defence: Miscellaneous Systems} (8... Nxe5 9. Nxe5 dxe5 10. Qf3 {½-½ (10) Petrosian,T (2636)-Khairullin,I (2649) Martuni 2011}) 9. Qc2 {[%emt 0:04:10]} Nh5 {[%emt 0:02:28]} 10. Rd1 {[%emt 0:06:50]} h6 {[%emt 0:05:24]} 11. Be3 $146 {[%emt 0:02:09]} ({Predecessor:} 11. Nh2 Qe7 12. b4 Nf4 13. Bf1 Nd8 14. Be3 b6 15. Nd2 Nde6 16. g3 {0-1 (52) Hossain,P (2275)-Rahman,Z (2493) Dhaka 2004}) 11... Qf6 {[%emt 0:02:19]} 12. Nbd2 {[%emt 0:02:18]} Nf4 {[%emt 0:12:22]} 13. Bf1 {[%emt 0:06:44]} g5 {[%emt 0:09:44]} 14. Re1 {[%emt 0:08:52]} Rd8 {[%emt 0:06:14]} 15. Kh2 {[%emt 0:02:51]} Be6 {[%emt 0:11:50]} 16. g3 {[%emt 0:06:11]} Ng6 {[%emt 0:02:43]} 17. Ng1 {[%emt 0:05:25]} a6 {[%emt 0:02:48]} 18. Nb3 {[%emt 0:01:17]} b6 {[%emt 0:00:41]} 19. Rad1 {[%emt 0:00:32]} a5 {[%emt 0:00:38]} 20. Rxd8+ {[%emt 0:03:51]} Rxd8 {[%emt 0:00:06]} 21. Rd1 {[%emt 0:00:32]} Rxd1 {[%emt 0:01:57]} 22. Qxd1 {[%emt 0:00:04]} Qd8 {[%emt 0:00:06]} 23. Qc2 {[%emt 0:05:11]} Bf8 {[%emt 0:01:12]} 24. Nd2 {[%emt 0:05:52]} Be7 {[%emt 0:03:43]} 25. Bc4 {[%emt 0:05:06]} Bxc4 {[%emt 0:06:36]} 26. Nxc4 {[%emt 0:00:03]} Qd7 {[%emt 0:00:50]} 27. Kg2 {[%emt 0:06:33]} Nd8 {[%emt 0:00:36]} 28. f3 {[%emt 0:03:06]} Ne6 {[%emt 0:03:20]} 29. Ne2 {[%emt 0:04:18]} h5 {[%emt 0:02:25]} 30. Bf2 {[%emt 0:01:19]} Bc5 {[%emt 0:02:24]} 31. Bxc5 {[%emt 0:01:11]} Nxc5 {[%emt 0:00:02]} 32. Nc1 {[%emt 0:00:25]} h4 {[%emt 0:00:51]} 33. Ne3 {[%emt 0:01:27]} hxg3 {[%emt 0:00:19]} 34. Kxg3 {[%emt 0:00:14]} Nf4 {[%emt 0:00:24]} 35. Nf5 {[%emt 0:00:38]} Nce6 {[%emt 0:02:33]} 36. Ne2 {[%emt 0:01:54]} Qd3 {[%emt 0:00:59]} 37. Qxd3 {[%emt 0:00:12]} Nxd3 {[%emt 0:00:04]} 38. b3 {[%emt 0:00:04]} f6 {[%emt 0:01:33]} 39. h4 {[%emt 0:01:41]} gxh4+ {[%emt 0:00:57]} 40. Kxh4 {[%emt 0:00:05]} Kf7 {[%emt 0:00:29]} 41. Ne3 {[%emt 0:08:19]} b5 {[%emt 0:01:34]} 42. Kg4 {[%emt 0:07:26]} Nf2+ $11 1/2-1/2

[Event "WTCC-65 2018"]
[Site "Radebeul"]
[Date "2018.07.08"]
[Round "2"]
[White "Kugelmann, Werner"]
[Black "Pushkov, Nikolai"]
[Result "1-0"]
[ECO "C02"]
[WhiteElo "2119"]
[BlackElo "2311"]
[Annotator "NA"]
[PlyCount "102"]
[EventDate "2018.07.07"]
[EventType "team-tourn"]
[EventCountry "GER"]
[SourceTitle "playchess.com"]
[Source "ChessBase"]
[SourceQuality "1"]
[TimeControl "40/5400+30:1800+30"]

1. e4 {[%emt 0:00:00]} e6 {[%emt 0:00:00]} 2. d4 {[%emt 0:00:07]} d5 {[%emt 0:00:00]} 3. e5 {[%emt 0:00:20]} c5 {[%emt 0:00:00]} 4. c3 {[%emt 0:00:11]} Nc6 {[%emt 0:00:00]} 5. Nf3 {[%emt 0:00:09]} Bd7 {[%emt 0:00:20]} 6. Be2 {[%emt 0:01:56]} Nge7 {[%emt 0:00:36]} 7. Na3 {[%emt 0:01:55] LiveBook: 687 Partien} cxd4 {[%emt 0:00:21]} 8. cxd4 {[%emt 0:00:07]} Nf5 {[%emt 0:00:06]} 9. Nc2 {[%emt 0:00:17]} Rc8 {[%emt 0:01:33]} 10. h4 {[%emt 0:05:09] C02: French: Advance Variation} h5 {[%emt 0:02:52]} 11. g3 {[%emt 0:03:13]} Qb6 $146 {[%emt 0:01:47]} ({Predecessor:} 11... Nb4 12. Nxb4 Bxb4+ 13. Bd2 Qb6 14. Bxb4 Qxb4+ 15. Qd2 Qxd2+ 16. Kxd2 f6 17. Bd3 Ne7 {½-½ (17) Movsesian,S (2635)-Hansen,C (2607) Germany 2006}) 12. O-O {[%emt 0:01:26]} Be7 {[%emt 0:02:09]} 13. Kg2 {[%emt 0:08:26]} Na5 {[%emt 0:09:00]} 14. Rb1 {[%emt 0:22:41]} Bb5 {[%emt 0:02:31]} 15. Bxb5+ {[%emt 0:03:08]} Qxb5 {[%emt 0:00:02]} 16. Ne3 {[%emt 0:09:10]} Nxe3+ {[%emt 0:14:03]} 17. Bxe3 {[%emt 0:01:44]} Nc4 {[%emt 0:00:44]} 18. Bg5 {[%emt 0:06:22]} Qa5 {[%emt 0:12:19]} 19. b3 {[%emt 0:09:29]} Na3 {[%emt 0:07:39]} 20. Rc1 {[%emt 0:02:33]} Kd7 {[%emt 0:04:35]} 21. Qe2 {[%emt 0:05:06]} Qa6 {[%emt 0:05:16]} 22. Qd2 {[%emt 0:01:54]} f6 {[%emt 0:01:23]} 23. Bf4 {[%emt 0:03:33]} Qb5 {[%emt 0:03:27]} 24. exf6 {[%emt 0:02:59]} gxf6 {[%emt 0:00:02]} 25. Rxc8 {[%emt 0:00:39]} Rxc8 {[%emt 0:00:04]} 26. Rc1 {[%emt 0:00:22]} Rxc1 {[%emt 0:05:11]} 27. Qxc1 {[%emt 0:00:04]} Qc6 {[%emt 0:00:12]} 28. Qe1 {[%emt 0:03:01]} a6 {[%emt 0:03:43]} 29. Qd2 {[%emt 0:03:15]} Qc2 {[%emt 0:05:36]} 30. Ne1 {[%emt 0:00:01]} Qxd2 {[%emt 0:02:43]} 31. Bxd2 {[%emt 0:00:02]} Nb5 {[%emt 0:00:12]} 32. Nc2 {[%emt 0:00:46]} e5 {[%emt 0:00:30]} 33. dxe5 {[%emt 0:01:50]} fxe5 {[%emt 0:00:02]} 34. Kf3 {[%emt 0:00:12]} Ke6 {[%emt 0:00:25]} 35. g4 {[%emt 0:00:24]} hxg4+ {[%emt 0:04:22]} 36. Kxg4 {[%emt 0:00:03]} Nd6 {[%emt 0:00:53]} 37. Bb4 {[%emt 0:01:12]} Nf5 {[%emt 0:00:09]} 38. Bxe7 {[%emt 0:00:41]} Nxe7 {[%emt 0:00:02]} 39. Kg5 {[%emt 0:00:15]} d4 {[%emt 0:00:10]} 40. h5 {[%emt 0:00:35]} Nd5 {[%emt 0:03:50]} 41. Na3 {[%emt 0:05:56]} e4 {[%emt 0:02:43]} 42. h6 {[%emt 0:01:50]} Kf7 {[%emt 0:00:30]} 43. Nc4 {[%emt 0:01:19]} e3 {[%emt 0:01:25]} 44. fxe3 {[%emt 0:00:59]} dxe3 {[%emt 0:00:02]} 45. Nxe3 {[%emt 0:20:34]} Nxe3 {[%emt 0:00:05]} 46. Kf4 {[%emt 0:00:02]} Nd5+ {[%emt 0:03:14]} 47. Ke5 {[%emt 0:00:13]} Nc3 {[%emt 0:00:26]} 48. a4 {[%emt 0:00:48]} b5 {[%emt 0:00:42]} 49. Kd4 $11 {[%emt 0:02:36]} b4 {[%emt 0:02:13]} 50. Kc5 {[%emt 0:00:08]} a5 {[%emt 0:03:25]} 51. Kb6 {[%emt 0:00:05]} Nxa4+ 1-0

[Event "WTCC-65 2018"]
[Site "Radebeul"]
[Date "2018.07.08"]
[Round "2"]
[White "Falk, Thomas"]
[Black "Ackermann, Hans Werner"]
[Result "1/2-1/2"]
[ECO "E91"]
[WhiteElo "2117"]
[BlackElo "2267"]
[Annotator "NA"]
[PlyCount "59"]
[EventDate "2018.07.07"]
[EventType "team-tourn"]
[EventCountry "GER"]
[SourceTitle "playchess.com"]
[Source "ChessBase"]
[SourceQuality "1"]
[TimeControl "40/5400+30:1800+30"]

1. Nf3 {[%emt 0:00:00]} d6 {[%emt 0:00:00]} 2. d4 {[%emt 0:00:00]} g6 {[%emt 0:00:00]} 3. c4 {[%emt 0:00:03]} Bg7 {[%emt 0:00:02]} 4. e4 {[%emt 0:00:54]} Nf6 {[%emt 0:01:56]} 5. Nc3 {[%emt 0:00:06]} O-O {[%emt 0:00:06]} 6. Be2 {[%emt 0:00:06]} Na6 {[%emt 0:02:12]} 7. O-O {[%emt 0:00:53]} c6 {[%emt 0:02:49] LiveBook: 146 Partien} 8. h3 {[%emt 0:02:21]} Nd7 {[%emt 0:05:07] E91: King's Indian: Classical: 6 Be2, unusual replies including 6...c5 and 6...Bg4} (8... e5 9. d5 Nh5 10. Nh2 Nf4 11. Bf3 cxd5 12. cxd5 Bd7 13. Be3 f5 14. Qd2 Nxh3+ 15. gxh3 f4 16. Bxa7 Rxa7 {0-1 (44) Rahul,S (2408)-Gukesh,D (2320) Moscow 2018}) 9. Bg5 {[%emt 0:05:40]} h6 {[%emt 0:04:21]} 10. Be3 {[%emt 0:00:06]} e5 {[%emt 0:05:07]} 11. Qd2 {[%emt 0:04:32]} Kh7 {[%emt 0:00:55]} 12. Rad1 {[%emt 0:02:25]} Qe7 {[%emt 0:04:03]} 13. dxe5 $146 {[%emt 0:07:56]} ({Predecessor:} 13. a3 f5 14. dxe5 dxe5 15. Qd6 Qe8 16. b4 {1-0 (39) Maceda Espinoza,M-Retamozo,K (1956) Piura 2013}) 13... dxe5 {[%emt 0:00:18]} 14. a3 {[%emt 0:00:40]} Nac5 {[%emt 0:06:05]} 15. b4 {[%emt 0:01:31]} Ne6 {[%emt 0:01:22]} 16. c5 {[%emt 0:00:08]} Nf4 {[%emt 0:06:57]} 17. Bc4 {[%emt 0:02:33]} g5 $16 {[%emt 0:04:29]} 18. Qd6 {[%emt 0:06:21]} Qf6 {[%emt 0:24:24]} 19. Qxf6 {[%emt 0:08:51]} Bxf6 {[%emt 0:00:40]} 20. Ne2 {[%emt 0:01:10]} Nxe2+ {[%emt 0:00:43]} 21. Bxe2 {[%emt 0:00:03]} Re8 {[%emt 0:02:00]} 22. Nd2 {[%emt 0:00:23]} Nf8 {[%emt 0:01:45]} 23. Nc4 {[%emt 0:01:35]} Be6 {[%emt 0:02:55]} 24. Nd6 {[%emt 0:00:27]} Re7 {[%emt 0:00:40]} 25. Nf5 {[%emt 0:05:49]} Rc7 {[%emt 0:01:21]} 26. a4 {[%emt 0:15:23]} Ng6 {[%emt 0:02:44]} 27. Bg4 {[%emt 0:12:29]} a6 {[%emt 0:02:58]} 28. Rd6 {[%emt 0:03:05]} Re8 {[%emt 0:05:54]} 29. Rb1 {[%emt 0:02:01]} Be7 {[%emt 0:02:32]} 30. Nxe7 {[%emt 0:00:58]} 1/2-1/2

[Event "WTCC-65 2018"]
[Site "Radebeul"]
[Date "2018.07.08"]
[Round "2"]
[White "Weiss, Werner"]
[Black "Donchenko, Anatoly G"]
[Result "0-1"]
[ECO "B50"]
[WhiteElo "2116"]
[BlackElo "2301"]
[Annotator "NA"]
[PlyCount "80"]
[EventDate "2018.07.07"]
[EventType "team-tourn"]
[EventCountry "GER"]
[SourceTitle "playchess.com"]
[Source "ChessBase"]
[SourceQuality "1"]
[TimeControl "40/5400+30:1800+30"]

1. e4 {[%emt 0:00:00]} c5 {[%emt 0:00:00]} 2. Nf3 {[%emt 0:00:00]} d6 {[%emt 0:00:00]} 3. d3 {[%emt 0:00:00]} g6 {[%emt 0:00:21]} 4. g3 {[%emt 0:00:04]} Bg7 {[%emt 0:00:11]} 5. Bg2 {[%emt 0:00:05]} Nc6 {[%emt 0:00:35]} 6. O-O {[%emt 0:00:17]} Bg4 {[%emt 0:00:26]} 7. h3 {[%emt 0:00:26]} Bxf3 {[%emt 0:00:08]} 8. Qxf3 {[%emt 0:00:23]} Nf6 {[%emt 0:00:29] LiveBook: 13 Partien} 9. c3 {[%emt 0:00:56] A04: Holländisches System ohne Übergang in andere Systeme} O-O {[%emt 0:00:30]} (9... Nd7 10. Be3 b5 11. Qe2 Rc8 12. a3 a5 13. Nd2 b4 14. Rac1 O-O 15. f4 bxc3 16. bxc3 {1-0 (36) Predojevic,B (2639)-Seyb,A (2420) Austria 2016}) 10. Qe2 {[%emt 0:06:25]} Qc7 {[%emt 0:00:47]} 11. Bf4 $146 {[%emt 0:10:29]} ({Vorgänger:} 11. Be3 b6 12. Nd2 Rad8 13. f4 d5 14. e5 Nd7 15. Rac1 {½-½ (45) Six,S (1987)-Zitny,P (1820) IECC email 1998}) 11... Rab8 {[%emt 0:01:26]} 12. Rd1 {[%emt 0:12:07]} Nd7 {[%emt 0:01:00]} 13. Nd2 {[%emt 0:08:56]} b5 {[%emt 0:00:36]} 14. Nf3 {[%emt 0:00:30]} b4 {[%emt 0:04:14]} 15. c4 {[%emt 0:01:11]} ({White should play} 15. d4 $11) 15... a5 {[%emt 0:02:03]} 16. h4 {[%emt 0:00:41]} a4 {[%emt 0:05:49]} 17. Rab1 {[%emt 0:00:06]} e6 {[%emt 0:03:44]} 18. Qd2 {[%emt 0:03:19]} a3 {[%emt 0:03:55]} 19. b3 {[%emt 0:00:02]} Nde5 $17 {[%emt 0:00:14]} 20. Bxe5 {[%emt 0:13:34]} Bxe5 {[%emt 0:00:59]} 21. h5 {[%emt 0:00:48]} Bg7 {[%emt 0:01:08]} 22. Bh3 {[%emt 0:04:53]} Qe7 {[%emt 0:00:58]} 23. h6 {[%emt 0:05:35]} Bc3 {[%emt 0:01:23]} 24. Qe3 {[%emt 0:06:46]} Rbe8 {[%emt 0:02:47]} 25. Kg2 {[%emt 0:04:25]} f5 {[%emt 0:04:05]} 26. Rbc1 {[%emt 0:05:51]} Nd4 {[%emt 0:05:25]} 27. Ng5 {[%emt 0:03:02]} e5 {[%emt 0:18:32]} 28. f4 {[%emt 0:01:58]} exf4 {[%emt 0:01:09]} 29. gxf4 {[%emt 0:00:06]} Ne6 {[%emt 0:00:18]} 30. Nxe6 {[%emt 0:04:29]} Qxe6 {[%emt 0:00:01]} 31. Qg3 {[%emt 0:00:17]} Kh8 {[%emt 0:01:04]} 32. Kh1 {[%emt 0:01:57]} Qf6 {[%emt 0:00:30]} 33. exf5 {[%emt 0:01:46]} gxf5 {[%emt 0:00:16]} 34. Qg7+ {[%emt 0:00:48]} Qxg7 {[%emt 0:00:13]} 35. hxg7+ {[%emt 0:00:08]} Kxg7 {[%emt 0:00:04]} 36. Rc2 {[%emt 0:00:19]} Kf6 {[%emt 0:00:29]} 37. Rg2 {[%emt 0:02:15]} Re3 {[%emt 0:04:01]} 38. Rh2 {[%emt 0:00:29]} Rfe8 {[%emt 0:05:14]} 39. Rf1 {[%emt 0:03:12]} Re1 {[%emt 0:02:42]} 40. Rhf2 {[%emt 0:00:00]} Bd4 {[%emt 0:00:00]} 0-1